Cogmind - Beta 15 @@@ ROGUE MODE // 2025.07.12 @ 01:40:09 Player: Inverisimilidude Result: Destroyed by S-43 Plague with Heavy Machine Gun Performance ------------- Evolutions (9) 4500 Regions Visited (17) 3400 Robots Destroyed (54) 270 Value Destroyed (2082) 2082 Prototype IDs (12) 240 Alien Tech Used (0) 0 Bonus (2592) 2592 TOTAL SCORE: 13084 Bonus ------- High Alert Combat Kills 30 Follower Combat Kills 1920 Entered DSFs 500 Met Imprinter 300 Was Imprinted 300 Friendly Fire -458 Cogmind --------- Core Integrity 0/1600 Matter 290/300 Energy 99/100 System Corruption 2% Temperature Cool (0) Movement Core (50) Location -1/Access Parts ------- > --- POWER (2) -------- (None) > --- PROPULSION (10) -- (None) > --- UTILITY (8) ------ (None) > --- WEAPON (5) ------- (None) > --- INVENTORY (5) ---- Layered Medium Armor Plating Advanced Drone Bay (0/2) KE Penetrator Self-destruct Interrupter (50) Peak State ------------ > --- POWER ------------ Quantum Reactor > --- PROPULSION ------- Carbon-fiber Leg Carbon-fiber Leg Flexi-carbon Leg Enhanced Flexi-carbon Leg Enhanced Flexi-carbon Leg > --- UTILITY ---------- Medium Storage Unit Improved Signal Interpreter Advanced Targeting Computer ECM Suite Centrium Medium Armor Plating > --- WEAPON ----------- Wave Gun Phase Cannon Autogun KE Penetrator > --- INVENTORY -------- Light Angular Momentum Engine Carbon-fiber Leg Flexi-carbon Leg Advanced Heat Sink Experimental Heat Sink Zionite Biocell Improved Signal Interpreter Layered Medium Armor Plating Z-Drone Bay Self-destruct Interrupter [Rating: 75] Favorites ----------- Power Light Ion Engine Engine Light Ion Engine Reactor Zionite Light DM Reactor Propulsion Carbon-fiber Leg Treads Light Treads Leg Carbon-fiber Leg Wheel Wheel Utility Medium Storage Unit Device Sensor Array Storage Medium Storage Unit Processor Signal Interpreter Protection Light Armor Plating Weapon Heavy Assault Rifle Energy Gun EM Shotgun Energy Cannon Phase Cannon Ballistic Gun Heavy Assault Rifle Ballistic Cannon Heavy Flak Cannon Launcher Rocket Array Special Weapon RU-N14's Throwing Claymores Build | -11 -10 -9 -9 -7 -6 -6 -6 -6 -6 -6 -5 -5 -4 -3 -3 -2 -1 ------- Run | Yrd Mat Mat Min Zio Pro Fac Ext Cet Arc Hub Fac DSF Fac Res Tes Res Acc Slots Evolved 18 | . . 2 . . . 6 . . . . 2 . 2 2 . 2 2 Power 1 | . . . . . . . . . . . . . . . . . 1 Propulsion 8 | . . 1 . . . 2 . . . . 1 . 1 1 . 1 1 Utility 6 | . . 1 . . . 2 . . . . 1 . 1 1 . . . Weapon 3 | . . . . . . 2 . . . . . . . . . 1 . Parts Attached 78 | 6 8 7 . 8 5 9 18 10 3 1 1 1 . . . . 1 Power 10 | 1 2 1 . 1 . 1 3 1 . . . . . . . . . Engine 8 | 1 2 1 . 1 . 1 2 . . . . . . . . . . Core . | . . . . . . . . . . . . . . . . . . Reactor 2 | . . . . . . . 1 1 . . . . . . . . . Propulsion 22 | 2 . 2 . 1 3 2 6 5 . 1 . . . . . . . Treads 2 | . . 2 . . . . . . . . . . . . . . . Leg 19 | 2 . . . . 3 2 6 5 . 1 . . . . . . . Wheel 1 | . . . . 1 . . . . . . . . . . . . . Hover . | . . . . . . . . . . . . . . . . . . Flight . | . . . . . . . . . . . . . . . . . . Utility 20 | 1 3 2 . . . 4 6 2 . . . 1 . . . . 1 Device 9 | . 2 1 . . . 2 2 . . . . 1 . . . . 1 Storage 4 | 1 1 . . . . . 1 1 . . . . . . . . . Processor 3 | . . 1 . . . 1 1 . . . . . . . . . . Hackware . | . . . . . . . . . . . . . . . . . . Protection 4 | . . . . . . 1 2 1 . . . . . . . . . Artifact . | . . . . . . . . . . . . . . . . . . Weapon 26 | 2 3 2 . 6 2 2 3 2 3 . 1 . . . . . . Energy Gun 7 | 2 1 . . . 1 1 . 1 1 . . . . . . . . Energy Cannon 1 | . . . . . . 1 . . . . . . . . . . . Ballistic Gun 10 | . 1 2 . 1 . . 2 1 2 . 1 . . . . . . Ballistic Cannon 1 | . . . . . 1 . . . . . . . . . . . . Launcher 6 | . 1 . . 4 . . 1 . . . . . . . . . . Special Weapon 1 | . . . . 1 . . . . . . . . . . . . . Impact Weapon . | . . . . . . . . . . . . . . . . . . Slashing Weapon . | . . . . . . . . . . . . . . . . . . Piercing Weapon . | . . . . . . . . . . . . . . . . . . Special Melee Weapon . | . . . . . . . . . . . . . . . . . . Unidentified Prototypes 12 | . . 1 . 4 . . 4 3 . . . . . . . . . Parts Lost 18 | . . 3 . . 5 . 6 2 2 . . . . . . . . Power . | . . . . . . . . . . . . . . . . . . Propulsion 5 | . . 2 . . 1 . 2 . . . . . . . . . . Utility 3 | . . . . . . . 1 1 1 . . . . . . . . Weapon 10 | . . 1 . . 4 . 3 1 1 . . . . . . . . Highest Loss Streak 4 | . . 1 . . 4 . 3 2 2 . . . . . . . . To Critical Strikes . | . . . . . . . . . . . . . . . . . . Average Backups 7 | 3 7 9 9 7 5 5 8 8 9 7 3 3 3 3 3 2 3 Power 1 | . 1 2 1 1 1 1 1 1 1 1 . . . . . . . Propulsion 1 | 2 3 1 2 1 1 . 1 1 2 1 1 . . . . . . Utility 2 | . . 1 2 2 2 3 5 5 6 4 2 2 2 2 2 1 2 Weapon 1 | . 2 3 4 3 1 . . . . . . . 1 1 1 1 1 Tool/Special . | . . . . . . . . . . . . . . . . . . Unused Backups 13 | . 1 . . 1 . 2 3 2 . 2 . 1 . . . . 1 Power 1 | . . . . . . . . 1 . . . . . . . . . Propulsion 5 | . 1 . . . . 2 1 . . 1 . . . . . . . Utility 5 | . . . . . . . 2 . . 1 . 1 . . . . 1 Weapon 2 | . . . . 1 . . . 1 . . . . . . . . . Tool/Special . | . . . . . . . . . . . . . . . . . . Average Slot Usage (%) 87 | . 98 96 88 99 99 83 96 95 93 57 2 3 . . . 2 . Engine 7 | . 14 10 11 11 11 6 3 . 4 3 . . . . . . . Treads 9 | . . 16 22 22 13 . . . . . . . . . . . . Leg 15 | . 28 14 . . 14 25 32 32 33 20 . . . . . . . Wheel 3 | . . . . 10 5 . . . . . . . . . . . . Device 9 | . 12 14 11 11 11 13 8 6 6 3 . . . . . 2 . Storage 8 | . 14 11 11 11 11 6 6 6 6 3 . . . . . . . Processor 8 | . . 7 11 11 11 6 10 13 8 3 . . . . . . . Protection 1 | . . . . . . 5 3 5 6 3 . . . . . . . Energy Gun 4 | . 17 . . . 6 8 8 1 6 3 . . . . . . . Energy Cannon 1 | . . . . . . 2 6 6 1 . . . . . . . . Ballistic Gun 8 | . 9 20 22 15 4 . 3 13 16 12 2 3 . . . . . Launcher 5 | . . . . 6 11 6 5 . . . . . . . . . . Peak Build Rating 75 | 6 10 15 12 18 22 47 64 69 75 74 8 14 2 2 2 13 8 Average Rating 27 | 4 7 13 12 13 19 34 57 64 72 43 6 4 2 2 2 9 2 On Entrance 19 | . 6 10 13 12 18 22 47 59 69 74 2 7 2 2 2 2 2 Naked Turns 741 | . . . . . . . . . . 84 15 40 69 93 77 52 311 Heaviest Build 58 | 11 17 24 20 25 30 47 49 57 58 44 5 5 . . . 10 4 Greatest Support 106 | 20 20 40 40 40 45 75 95 106 106 106 3 3 3 3 3 3 3 Greatest Overweight (x) 6 | 1 . 6 . . 1 . . . . . 1 1 . . . 3 1 Average Overweight (x) . | . . . . . . . . . . . . . . . . 1 . Largest Inventory Capacity 10 | 8 10 10 10 10 10 10 10 10 10 10 5 5 5 5 5 5 5 Average Capacity 9 | 7 8 10 10 10 10 10 10 10 10 7 5 5 5 5 5 5 5 Most Carried 10 | 7 10 10 10 10 10 10 10 10 10 10 5 5 5 5 5 5 5 Average Carried 8 | 3 8 9 9 8 6 6 9 9 10 7 4 4 5 5 5 3 5 Final Capacity 10 | 8 10 10 10 10 10 10 10 10 10 5 5 5 5 5 5 5 5 Final Carried 10 | 6 10 10 10 9 4 9 9 10 10 5 4 5 5 5 5 5 5 Class Distribution -------------------- 71% | Mutant 13% | Scavenger-Gunner 5% | Scavenger-Skirmisher 3% | Scavenger-Tank 3% | Messiah-Skirmisher Dominant Class ---------------- Mutant | -10/Materials Mutant | -9/Materials Mutant | -9/Mines Mutant | -7/Zion Mutant | -6/Proximity Caves Mutant | -6/Factory Scavenger-Gunner | -6/Extension Scavenger-Gunner | -6/Cetus Scavenger-Tank | -6/Archives Scavenger-Tank | -6/Hub_04(d) Mutant | -5/Factory Mutant | -5/DSF Mutant | -4/Factory Mutant | -3/Research Mutant | -3/Testing Mutant | -2/Research Mutant | -1/Access Resources | -11 -10 -9 -9 -7 -6 -6 -6 -6 -6 -6 -5 -5 -4 -3 -3 -2 -1 ----------- Run | Yrd Mat Mat Min Zio Pro Fac Ext Cet Arc Hub Fac DSF Fac Res Tes Res Acc Matter Collected 2196 | 233 104 575 . 112 285 140 364 165 151 . . 47 . 10 . 10 . Remotely . | . . . . . . . . . . . . . . . . . . Salvage Created 1962 | . 115 411 . . 258 24 678 161 315 . . . . . . . . Parts 99 | . 12 23 . . 13 5 23 6 17 . . . . . . . . Haulers Intercepted . | . . . . . . . . . . . . . . . . . . Recyclers Shooed . | . . . . . . . . . . . . . . . . . . Parts Field Recycled . | . . . . . . . . . . . . . . . . . . Retrieved Matter . | . . . . . . . . . . . . . . . . . . Parts Self-Destructed 12 | . . . . 2 10 . . . . . . . . . . . . Prevented 4 | . . . . . 4 . . . . . . . . . . . . Kills | -11 -10 -9 -9 -7 -6 -6 -6 -6 -6 -6 -5 -5 -4 -3 -3 -2 -1 ------- Run | Yrd Mat Mat Min Zio Pro Fac Ext Cet Arc Hub Fac DSF Fac Res Tes Res Acc Combat Hostiles Destroyed 43 | . 6 10 . . 8 . 13 2 4 . . . . . . . . Guns 22 | . 5 8 . . 1 . 4 1 3 . . . . . . . . Cannons 6 | . . . . . . . 6 . . . . . . . . . . AOE 14 | . 1 2 . . 7 . 3 1 . . . . . . . . . Classes Destroyed 8 | . 2 4 . . . . 2 . . . . . . . . . . Builder 1 | . . . . . . . 1 . . . . . . . . . . Tunneler 3 | . 1 1 . . . . 1 . . . . . . . . . . Operator 3 | . . 1 . . . 2 . . . . . . . . . . . Watcher 4 | . . 2 . . . . 1 1 . . . . . . . . . Swarmer 15 | . 6 3 . . 2 . 4 . . . . . . . . . . Grunt 15 | . . 3 . . 6 . 5 1 . . . . . . . . . Sentry 10 | . . 4 . . . . 2 . 4 . . . . . . . . Behemoth 1 | . . . . . . . 1 . . . . . . . . . . Cetus Guard 1 | . . . . . . . . 1 . . . . . . . . . Thug 1 | . . . . . . . 1 . . . . . . . . . . Best Kill Streak 7 | . 3 4 . . 7 2 3 2 4 . . . . . . . . Combat Bots Only 7 | . 3 3 . . 7 . 3 1 4 . . . . . . . . Max Kills in Single Turn 2 | . 1 2 . . 2 2 2 1 1 . . . . . . . . Gunslinging . | . . . . . . . . . . . . . . . . . . Exploded 2 | . 1 1 . . 2 . 2 1 . . . . . . . . . Melee . | . . . . . . . . . . . . . . . . . . Uniques/NPCs Destroyed . | . . . . . . . . . . . . . . . . . . Combat | -11 -10 -9 -9 -7 -6 -6 -6 -6 -6 -6 -5 -5 -4 -3 -3 -2 -1 -------- Run | Yrd Mat Mat Min Zio Pro Fac Ext Cet Arc Hub Fac DSF Fac Res Tes Res Acc Hostile Shots Fired 537 | . 22 55 . . 43 . 115 30 39 40 . 81 2 2 14 7 87 Missed 188 | . 4 19 . . 11 . 41 9 10 12 . 37 . 2 9 4 30 Hits 349 | . 18 36 . . 32 . 74 21 29 28 . 44 2 . 5 3 57 Melee 2 | . . . . . . . . . . . . . . . . 2 . Projectile 347 | . 18 36 . . 32 . 74 21 29 28 . 44 2 . 5 1 57 AOE 1 | . . . . . . . 1 . . . . . . . . . . Critical Strikes 13 | . . . . . 1 . . 3 1 2 . 2 . . 1 2 1 Damage Taken 7482 | . 220 448 . . 788 28 1408 592 676 500 . 910 41 . 106 145 1620 Core 3754 | . 11 79 . . 70 . 175 109 50 438 . 910 41 . 106 145 1620 Absorbed by Shields 80 | . . . . . . . 58 . . . . 22 . . . . . Redirected to Shielding 18 | . . . . . . . 18 . . . . . . . . . . Regen/Repaired (Parts) 3 | . . . . 3 . . . . . . . . . . . . . Core Remaining (%) 69 | 100 95 . . . 62 . . . . 9 . 9 96 . 91 90 . Volleys Fired 134 | . 23 42 . . 11 5 30 5 11 . 7 . . . . . . Largest 4 | . 2 2 . . 2 1 3 3 4 . 1 . . . . . . Hottest 222 | . 90 53 . . 89 45 199 131 222 . 33 . . . . . . Shots Fired 268 | . 45 81 . . 22 5 61 10 37 . 7 . . . . . . Gun 204 | . 42 74 . . 10 3 31 5 32 . 7 . . . . . . Cannon 34 | . . . . . 1 . 26 2 5 . . . . . . . . Launcher 30 | . 3 7 . . 11 2 4 3 . . . . . . . . . Special . | . . . . . . . . . . . . . . . . . . Kinetic 139 | . 19 74 . . 5 . 8 5 21 . 7 . . . . . . Thermal 72 | . 10 . . . . . 44 2 16 . . . . . . . . Explosive 24 | . 3 7 . . 11 2 1 . . . . . . . . . . Electromagnetic 33 | . 13 . . . 6 3 8 3 . . . . . . . . . Robot Hit Streak 17 | . 3 17 . . 5 6 9 3 12 . 17 . . . . . . Robot Miss Streak 6 | . 2 2 . . 6 5 6 2 1 . 1 . . . . . . Penetration Max 1 | . . . . . . . . . 1 . . . . . . . . Secondary Targets . | . . . . . . . . . . . . . . . . . . Shots Hit Robots 158 | . 13 50 . . 10 1 42 4 32 . 6 . . . . . . Core Hits 127 | . 9 21 . . 27 6 40 10 14 . . . . . . . . Critical Kills 4 | . 1 . . . . . 1 . 2 . . . . . . . . Critical Parts Destroyed . | . . . . . . . . . . . . . . . . . . Critical Strikes 6 | . 2 . . . . . 2 . 2 . . . . . . . . Burn 2 | . 1 . . . . . 1 . . . . . . . . . . Meltdown 2 | . . . . . . . 1 . 1 . . . . . . . . Destroy 2 | . 1 . . . . . . . 1 . . . . . . . . Melee Attacks . | . . . . . . . . . . . . . . . . . . Impact . | . . . . . . . . . . . . . . . . . . Slashing . | . . . . . . . . . . . . . . . . . . Piercing . | . . . . . . . . . . . . . . . . . . Sneak Attacks . | . . . . . . . . . . . . . . . . . . Combat Hostiles . | . . . . . . . . . . . . . . . . . . Follow-up Attacks . | . . . . . . . . . . . . . . . . . . Damage Inflicted 5856 | . 281 1045 . . 1425 92 1694 452 717 7 143 . . . . . . Guns 2076 | . 142 687 . . 57 . 418 32 597 . 143 . . . . . . Cannons 760 | . . . . . 37 . 551 52 120 . . . . . . . . Explosions 3013 | . 139 358 . . 1331 92 725 368 . . . . . . . . . Melee . | . . . . . . . . . . . . . . . . . . Ramming 7 | . . . . . . . . . . 7 . . . . . . . Kinetic 1459 | . 82 687 . . 68 . 81 32 366 . 143 . . . . . . Thermal 1646 | . 36 . . . . . 1120 139 351 . . . . . . . . Explosive 2289 | . 139 358 . . 1331 92 369 . . . . . . . . . . Electromagnetic 455 | . 24 . . . 26 . 124 281 . . . . . . . . . Impact . | . . . . . . . . . . . . . . . . . . Slashing . | . . . . . . . . . . . . . . . . . . Piercing . | . . . . . . . . . . . . . . . . . . Highest Corruption 11 | . . . . . . . 11 11 11 11 . . . . 1 . 2 Average Corruption 10 | . . . . . . . 9 11 11 11 . . . . 1 . 1 Corruption Purged . | . . . . . . . . . . . . . . . . . . Corruption Blocked . | . . . . . . . . . . . . . . . . . . Effects 81 | . . . . . . . 41 17 13 10 . . . . . . . Message Errors 14 | . . . . . . . 10 3 1 . . . . . . . . Matter Fused 16 | . . . . . . . 8 5 2 1 . . . . . . . Heat Flow Errors 17 | . . . . . . . 6 5 3 3 . . . . . . . Energy Discharges 11 | . . . . . . . 7 . 2 2 . . . . . . . Parts Fused 2 | . . . . . . . . 1 1 . . . . . . . . Data Loss (minor) 7 | . . . . . . . 4 . 2 1 . . . . . . . Data Loss (major) 4 | . . . . . . . 2 1 . 1 . . . . . . . Misfires 2 | . . . . . . . 1 1 . . . . . . . . . Alerts 2 | . . . . . . . 1 . 1 . . . . . . . . Misdirections 4 | . . . . . . . 1 1 . 2 . . . . . . . Weapon Failures 2 | . . . . . . . 1 . 1 . . . . . . . . Overload Shots . | . . . . . . . . . . . . . . . . . . Overflow Damage 98 | . . 2 . . 85 . 11 . . . . . . . . . . Projectiles . | . . . . . . . . . . . . . . . . . . Explosions 98 | . . 2 . . 85 . 11 . . . . . . . . . . Melee . | . . . . . . . . . . . . . . . . . . Knockbacks . | . . . . . . . . . . . . . . . . . . Impact . | . . . . . . . . . . . . . . . . . . Kinetic . | . . . . . . . . . . . . . . . . . . Secondary . | . . . . . . . . . . . . . . . . . . Self-Inflicted Damage 220 | . 55 . . . 13 28 121 . . 3 . . . . . . . Shots 10 | . 2 . . . 1 1 6 . . . . . . . . . . Rammed 4 | . . . . . . . . . . 4 . . . . . . . Targets Rammed 4 | . . . . . . . . . . 4 . . . . . . . Kicked . | . . . . . . . . . . . . . . . . . . Crushed . | . . . . . . . . . . . . . . . . . . Highest Temperature 527 | . 70 12 . 203 376 . 327 263 527 179 . 6 . . . . . Average Temperature 112 | . 36 4 . 103 109 . 107 96 194 89 . 6 . . . . . Received Heat Transfer 1569 | . 42 165 . . 501 . 300 72 144 75 . 216 . . 27 . 27 Effects 3 | . . . . . . . . . 3 . . . . . . . . Shutdowns 1 | . . . . . . . . . 1 . . . . . . . . Short Circuit 2 | . . . . . . . . . 2 . . . . . . . . Siege Activations . | . . . . . . . . . . . . . . . . . . Martial Activations . | . . . . . . . . . . . . . . . . . . Shielding Activations . | . . . . . . . . . . . . . . . . . . Robots Disrupted . | . . . . . . . . . . . . . . . . . . Combat Hostiles . | . . . . . . . . . . . . . . . . . . Robots Corrupted . | . . . . . . . . . . . . . . . . . . Combat Hostiles . | . . . . . . . . . . . . . . . . . . Parts Fried 2 | . . . . . 1 . 1 . . . . . . . . . . Impact Corruptions . | . . . . . . . . . . . . . . . . . . Robots Melted 2 | . . . . . . . 1 . 1 . . . . . . . . Combat Hostiles 1 | . . . . . . . . . 1 . . . . . . . . Parts Melted 13 | . 1 . . . . . 9 . 3 . . . . . . . . Heat Transferred 2304 | . 173 . . . . . 1389 224 518 . . . . . . . . Parts Sabotaged . | . . . . . . . . . . . . . . . . . . Parts Stolen . | . . . . . . . . . . . . . . . . . . Parts Stripped . | . . . . . . . . . . . . . . . . . . Power Chain Reactions 1 | . . . . . . . . 1 . . . . . . . . . Alert | -11 -10 -9 -9 -7 -6 -6 -6 -6 -6 -6 -5 -5 -4 -3 -3 -2 -1 ------- Run | Yrd Mat Mat Min Zio Pro Fac Ext Cet Arc Hub Fac DSF Fac Res Tes Res Acc Maximum Alert Level 2 | . . . . . . . 2 2 1 . . . . . . . . Low Security (%) 83 | 100 100 100 100 . . 100 69 . 92 100 100 100 100 100 100 100 100 Level 1 7 | . . . . . . . 8 70 7 . . . . . . . . Level 2 8 | . . . . . . . 21 29 . . . . . . . . . Level 3 . | . . . . . . . . . . . . . . . . . . Level 4 . | . . . . . . . . . . . . . . . . . . Level 5 . | . . . . . . . . . . . . . . . . . . High Security . | . . . . . . . . . . . . . . . . . . Max Security . | . . . . . . . . . . . . . . . . . . Peak Influence 617 | . 93 135 9 . . 105 617 496 208 40 16 15 2 37 21 190 110 Initial 323 | . . 18 9 . . . . 323 143 37 16 . 2 . 15 . 108 Average 107 | . 37 44 . . . 23 189 380 156 18 8 1 . 6 8 21 56 Influence Increases 3685 | . 218 349 . . 424 171 1366 413 125 75 . 15 . 37 14 251 227 Destroy 0b10 Robot/C 1740 | . 120 200 . . 300 80 600 200 80 . . . . 20 . 100 40 Destroy 0b10 Robot/NC 65 | . 5 20 . . . 10 20 5 . . . . . . 5 . . Destroy Leader 288 | . 20 64 . . 60 10 74 20 . . . . . 10 . 30 . Allied During Kill 871 | . . . . . 64 23 502 176 . . . . . 7 1 79 19 Successful Hack 40 | . 8 6 . . . . 14 8 . . . . . . 4 . . Disable Machine 210 | . 30 15 . . . 15 105 . 45 . . . . . . . . Destroy Structure 201 | . 20 44 . . . 33 51 4 . . . . . . 4 42 3 Partial Spotted 45 | . . . . . . . . . . . . . . . . . 45 Lose Combat Pursuer 225 | . 15 . . . . . . . . 75 . 15 . . . . 120 Influence Decreases 3575 | . 174 369 24 . 424 171 788 633 375 148 35 10 5 10 41 70 298 Entered New Map 689 | . . 26 15 . . . . 255 215 71 19 . 3 . 12 . 73 Time Decay 2165 | . 174 313 9 . 337 171 541 198 140 67 16 . 2 10 27 10 150 Lost Part 165 | . . 30 . . 50 . 45 20 20 . . . . . . . . Lost Ally 556 | . . . . . 37 . 202 160 . 10 . 10 . . 2 60 75 Squads Dispatched 16 | . . . . . . 1 2 2 . 2 . 1 . . 2 2 4 Investigation 5 | . . . . . . . 2 2 . 1 . . . . . . . Extermination 3 | . . . . . . 1 . . . . . . . . . . 2 Reinforcement 6 | . . . . . . . . . . 1 . 1 . . 2 2 . Assault . | . . . . . . . . . . . . . . . . . . Garrison 2 | . . . . . . . . . . . . . . . . . 2 Intercept . | . . . . . . . . . . . . . . . . . . Searches Triggered . | . . . . . . . . . . . . . . . . . . Construction Impeded . | . . . . . . . . . . . . . . . . . . Haulers Reinforced . | . . . . . . . . . . . . . . . . . . Active Scanning Responses . | . . . . . . . . . . . . . . . . . . Cargo Convoy Interrupts . | . . . . . . . . . . . . . . . . . . Stealth | -11 -10 -9 -9 -7 -6 -6 -6 -6 -6 -6 -5 -5 -4 -3 -3 -2 -1 --------- Run | Yrd Mat Mat Min Zio Pro Fac Ext Cet Arc Hub Fac DSF Fac Res Tes Res Acc Distress Signals 7 | . 1 1 . . . . 1 2 . 1 . . 1 . . . . Communications Jammed . | . . . . . . . . . . . . . . . . . . Distress Signals . | . . . . . . . . . . . . . . . . . . Times Spotted 165 | . 13 17 . . 14 7 29 15 6 15 . 3 6 1 8 10 21 Peak Tracking Total 14 | . 4 3 . . 8 3 4 5 2 10 . 3 6 1 7 5 14 Tactical Retreats 9 | . 1 . . . . . . 1 . 3 . 1 . . . . 3 Traps | -11 -10 -9 -9 -7 -6 -6 -6 -6 -6 -6 -5 -5 -4 -3 -3 -2 -1 ------- Run | Yrd Mat Mat Min Zio Pro Fac Ext Cet Arc Hub Fac DSF Fac Res Tes Res Acc Traps Triggered 6 | . . 3 . . . . 1 . . 1 . 1 . . . . . Indirectly . | . . . . . . . . . . . . . . . . . . Trap Hack Attempts . | . . . . . . . . . . . . . . . . . . Triggered . | . . . . . . . . . . . . . . . . . . Disarmed . | . . . . . . . . . . . . . . . . . . Reprogrammed . | . . . . . . . . . . . . . . . . . . Reused . | . . . . . . . . . . . . . . . . . . Traps Extracted . | . . . . . . . . . . . . . . . . . . Installed . | . . . . . . . . . . . . . . . . . . Triggered . | . . . . . . . . . . . . . . . . . . Machines | -11 -10 -9 -9 -7 -6 -6 -6 -6 -6 -6 -5 -5 -4 -3 -3 -2 -1 ---------- Run | Yrd Mat Mat Min Zio Pro Fac Ext Cet Arc Hub Fac DSF Fac Res Tes Res Acc Machines Disabled 16 | . 2 1 . . . 1 9 . 3 . . . . . . . . Max in Single Turn 2 | . 1 1 . . . . 2 . 1 . . . . . . . . Energy Cycler 2 | . . . . . . . 2 . . . . . . . . . . Machines Repaired . | . . . . . . . . . . . . . . . . . . Machines Dismantled . | . . . . . . . . . . . . . . . . . . Machines Sabotaged . | . . . . . . . . . . . . . . . . . . Overloaded Fab Kills . | . . . . . . . . . . . . . . . . . . Hacking | -11 -10 -9 -9 -7 -6 -6 -6 -6 -6 -6 -5 -5 -4 -3 -3 -2 -1 --------- Run | Yrd Mat Mat Min Zio Pro Fac Ext Cet Arc Hub Fac DSF Fac Res Tes Res Acc Machines Accessed 14 | . 1 2 . . . 1 5 2 1 . 1 . . . 1 . . Terminals 12 | . 1 2 . . . . 5 2 . . 1 . . . 1 . . Fabricators 1 | . . . . . . 1 . . . . . . . . . . . Repair Stations . | . . . . . . . . . . . . . . . . . . Recycling Units . | . . . . . . . . . . . . . . . . . . Scanalyzers . | . . . . . . . . . . . . . . . . . . Garrison Access . | . . . . . . . . . . . . . . . . . . Total Hacks 37 | . 3 5 . . . 1 13 5 7 . 2 . . . 1 . . Successful 20 | . 1 3 . . . 1 4 2 7 . 1 . . . 1 . . Failed 17 | . 2 2 . . . . 9 3 . . 1 . . . . . . Catastrophic 5 | . . . . . . . 3 2 . . . . . . . . . Database Lockouts . | . . . . . . . . . . . . . . . . . . Manual 57 | . 3 4 . . . 7 8 1 . 4 2 . 2 2 8 4 12 Terminals 29 | . 3 5 . . . . 13 5 . . 2 . . . 1 . . Fabricators 1 | . . . . . . 1 . . . . . . . . . . . Repair Stations . | . . . . . . . . . . . . . . . . . . Recycling Units . | . . . . . . . . . . . . . . . . . . Scanalyzers . | . . . . . . . . . . . . . . . . . . Garrison Access . | . . . . . . . . . . . . . . . . . . Terminal Hacks 17 | . 1 1 . . . . 4 2 7 . 1 . . . 1 . . Record 9 | . . . . . . . . 2 7 . . . . . . . . Open Door 5 | . . . . . . . 4 . . . . . . . 1 . . Open DSF 1 | . . . . . . . . . . . 1 . . . . . . Branch Access Points 2 | . 1 1 . . . . . . . . . . . . . . . Fabricator Hacks 1 | . . . . . . 1 . . . . . . . . . . . Network Status 1 | . . . . . . 1 . . . . . . . . . . . Repair Station Hacks . | . . . . . . . . . . . . . . . . . . Recycling Unit Hacks . | . . . . . . . . . . . . . . . . . . Scanalyzer . | . . . . . . . . . . . . . . . . . . Garrison Access Hacks . | . . . . . . . . . . . . . . . . . . Unauthorized Hacks 2 | . . 2 . . . . . . . . . . . . . . . Terminals 2 | . . 2 . . . . . . . . . . . . . . . Botnet 2 | . . 2 . . . . . . . . . . . . . . . Fabricators . | . . . . . . . . . . . . . . . . . . Repair Stations . | . . . . . . . . . . . . . . . . . . Recycling Units . | . . . . . . . . . . . . . . . . . . Scanalyzers . | . . . . . . . . . . . . . . . . . . Garrison Access . | . . . . . . . . . . . . . . . . . . Data Cores Recovered 2 | . . 1 . . . . . . . . . . . . 1 . . Used . | . . . . . . . . . . . . . . . . . . Hacking Detections 7 | . 1 . . . . . 3 2 . . 1 . . . . . . Full Trace Events 4 | . . . . . . . 2 2 . . . . . . . . . Feedback Events 2 | . . . . . . . 2 . . . . . . . . . . Corruption 2 | . . . . . . . 2 . . . . . . . . . . Feedback Blocked . | . . . . . . . . . . . . . . . . . . Robot Schematics Acquired . | . . . . . . . . . . . . . . . . . . Robots Built . | . . . . . . . . . . . . . . . . . . Authchips . | . . . . . . . . . . . . . . . . . . Time . | . . . . . . . . . . . . . . . . . . Total Robot Build Rating . | . . . . . . . . . . . . . . . . . . Part Schematics Acquired . | . . . . . . . . . . . . . . . . . . Parts Built . | . . . . . . . . . . . . . . . . . . Authchips . | . . . . . . . . . . . . . . . . . . Time . | . . . . . . . . . . . . . . . . . . Total Part Build Rating . | . . . . . . . . . . . . . . . . . . Parts Repaired . | . . . . . . . . . . . . . . . . . . Time . | . . . . . . . . . . . . . . . . . . Parts Recycled . | . . . . . . . . . . . . . . . . . . Recycled Matter . | . . . . . . . . . . . . . . . . . . Retrieved Matter . | . . . . . . . . . . . . . . . . . . Retrieved Components . | . . . . . . . . . . . . . . . . . . Parts Scanalyzed . | . . . . . . . . . . . . . . . . . . Part Schematics Acquired . | . . . . . . . . . . . . . . . . . . Parts Damaged . | . . . . . . . . . . . . . . . . . . Bothacking | -11 -10 -9 -9 -7 -6 -6 -6 -6 -6 -6 -5 -5 -4 -3 -3 -2 -1 ------------ Run | Yrd Mat Mat Min Zio Pro Fac Ext Cet Arc Hub Fac DSF Fac Res Tes Res Acc Used RIF Installer . | . . . . . . . . . . . . . . . . . . Robots Hacked . | . . . . . . . . . . . . . . . . . . Non-combat . | . . . . . . . . . . . . . . . . . . Combat . | . . . . . . . . . . . . . . . . . . Robot Hacks Applied . | . . . . . . . . . . . . . . . . . . Relay Couplers Released . | . . . . . . . . . . . . . . . . . . Fabnet Peak Effective % . | . . . . . . . . . . . . . . . . . . Robots Rewired 10 | . . . . . . . 10 . . . . . . . . . . Allies Hacked 1 | . . . . . . . . . . . . . . . . . 1 Hacks Repelled . | . . . . . . . . . . . . . . . . . . Allies | -11 -10 -9 -9 -7 -6 -6 -6 -6 -6 -6 -5 -5 -4 -3 -3 -2 -1 -------- Run | Yrd Mat Mat Min Zio Pro Fac Ext Cet Arc Hub Fac DSF Fac Res Tes Res Acc Total Allies 43 | . . . . 4 . 3 24 . . 1 1 . . 1 . 5 4 Largest Group 12 | . . . . 4 4 3 12 11 . 1 1 1 . 1 1 5 4 Highest-Rated Group 622 | . . . . 153 153 210 622 453 . 28 32 32 . 269 269 589 512 Highest-Rated Ally 269 | . . . . 41 41 70 159 96 . 28 32 32 . 269 269 122 269 Zionite Dispatches 11 | . . . . . . 1 2 . . 1 1 . . 1 . 2 3 Heavy 1 | . . . . . . . . . . . . . . . . 1 . Light 2 | . . . . . . 1 . . . . . . . . . 1 . Recon 2 | . . . . . . . 1 . . . . . . . . . 1 Hacker 2 | . . . . . . . 1 . . . . . . . . . 1 Experimental 2 | . . . . . . . . . . . . . . 1 . . 1 Melee Resupply 1 | . . . . . . . . . . 1 . . . . . . . Hover Resupply 1 | . . . . . . . . . . . 1 . . . . . . Total Orders 6 | . . . . . . . 3 . . . . . . . . 3 . AID 1 | . . . . . . . 1 . . . . . . . . . . EXPLORE 5 | . . . . . . . 2 . . . . . . . . 3 . Ally Attacks 329 | . . . . . 36 19 135 96 . . . . . 2 3 22 16 Total Damage 9071 | . . . . . 1126 263 3525 2137 . . . . . 336 336 956 392 Kills 49 | . . . . . 7 4 19 10 . . . . . 1 1 5 2 Allies Corrupted 5 | . . . . . 1 . . . . . . . . . 1 2 1 Allies Melted 1 | . . . . . . . . . . 1 . . . . . . . Intel | -11 -10 -9 -9 -7 -6 -6 -6 -6 -6 -6 -5 -5 -4 -3 -3 -2 -1 ------- Run | Yrd Mat Mat Min Zio Pro Fac Ext Cet Arc Hub Fac DSF Fac Res Tes Res Acc Active Infowar (turns) 7747 | . 420 842 245 2126 2198 819 712 328 57 . . . . . . . . Sensors 6942 | . . 842 245 2126 2198 819 712 . . . . . . . . . . Terrain 291 | . 5 286 . . . . . . . . . . . . . . . Structural 415 | . 415 . . . . . . . . . . . . . . . . ECM 1822 | . . . . . . 819 618 328 57 . . . . . . . . Robot Analysis Total . | . . . . . . . . . . . . . . . . . . Derelict Logs Recovered 3 | . . . . 1 2 . . . . . . . . . . . . Drone Launches 8 | . . . . . . . 2 . . . . . . . . 4 2 Drone Recoveries 4 | . . . . . . . 2 . . . . . . . . 2 . Zionite Intel Received 2 | . . . . . . . 1 . . . . . . . 1 . . Branch Access 1 | . . . . . . . 1 . . . . . . . . . . Emergency Access 1 | . . . . . . . . . . . . . . . 1 . . Exploration | -11 -10 -9 -9 -7 -6 -6 -6 -6 -6 -6 -5 -5 -4 -3 -3 -2 -1 ------------- Run | Yrd Mat Mat Min Zio Pro Fac Ext Cet Arc Hub Fac DSF Fac Res Tes Res Acc Turns Passed 10285 | 72 448 842 245 2126 2198 819 1764 417 296 197 51 85 69 93 77 170 316 Spaces Moved 7536 | 44 281 425 151 1301 1493 617 1204 306 214 244 50 88 138 121 143 93 623 Core 1424 | 7 . 3 . . . . . . . 158 50 88 138 121 143 93 623 Treads 2414 | . . 286 151 1301 676 . . . . . . . . . . . . Legs 3698 | 37 281 136 . . 817 617 1204 306 214 86 . . . . . . . Wheels . | . . . . . . . . . . . . . . . . . . Hover . | . . . . . . . . . . . . . . . . . . Flight . | . . . . . . . . . . . . . . . . . . Fastest Speed 50 | 50 120 120 160 160 126 124 120 120 120 50 50 50 50 50 50 50 50 Average Speed 123 | 130 120 156 160 160 142 125 122 120 120 74 71 75 50 50 50 108 50 Slowest Speed 350 | 190 120 350 160 160 240 126 125 120 120 120 100 100 50 50 50 200 100 Overloaded Moves . | . . . . . . . . . . . . . . . . . . Propulsion Burnouts . | . . . . . . . . . . . . . . . . . . Robots Hopped . | . . . . . . . . . . . . . . . . . . Potential Cave-ins 8 | . . . . . 2 . 6 . . . . . . . . . . Cave-ins Triggered 1 | . . . . . . . 1 . . . . . . . . . . Exploration Rate (%) 44 | 5 55 31 58 90 99 16 95 72 99 38 1 88 6 5 20 10 19 Regions Visited 17 Branch Regions 8 Pre-discovered Areas . | . . . . . . . . . . . . . . . . . . Known Exits Taken 10 | . . 1 1 1 1 1 1 1 1 1 1 . . . . . . Unknown Exits Taken 6 | 1 1 . . . . . . . . . . . 1 1 1 1 . Scrap Searched 6 | . . . . 2 4 . . . . . . . . . . . . Spaces Dug . | . . . . . . . . . . . . . . . . . . Terrain Destroyed 300 | . 18 43 . . 160 44 33 2 . . . . . . . . . Melee . | . . . . . . . . . . . . . . . . . . Projectile 4 | . . . . . . . 4 . . . . . . . . . . AOE 296 | . 18 43 . . 160 44 29 2 . . . . . . . . . Terrain Rammed . | . . . . . . . . . . . . . . . . . . Walls Destroyed . | . . . . . . . . . . . . . . . . . . Machines Disabled . | . . . . . . . . . . . . . . . . . . Actions | -11 -10 -9 -9 -7 -6 -6 -6 -6 -6 -6 -5 -5 -4 -3 -3 -2 -1 --------- Run | Yrd Mat Mat Min Zio Pro Fac Ext Cet Arc Hub Fac DSF Fac Res Tes Res Acc Total 8271 | 56 343 517 155 1348 1533 657 1435 350 231 258 58 107 137 152 147 162 625 Wait 323 | . 19 25 2 26 16 14 92 16 . 8 . . . 32 5 68 . Move 7518 | 43 280 424 150 1300 1492 616 1202 305 213 243 49 87 137 120 142 92 623 Hop . | . . . . . . . . . . . . . . . . . . Pick Up 36 | 7 4 4 1 3 1 9 4 2 . . . 1 . . . . . Fast Attach 43 | 5 2 7 . 5 1 4 10 5 1 . 1 1 . . . . 1 Attach 23 | 1 . 4 . 3 6 2 3 3 . . . . . . . 1 . Detach 10 | . . 1 . 1 . . 4 2 . . . 1 . . . 1 . Swap 42 | . 11 6 1 1 3 3 8 4 4 1 . . . . . . . Drop 53 | . 4 4 1 9 2 4 13 8 2 1 1 3 . . . . 1 Fire 134 | . 23 42 . . 11 5 30 5 11 . 7 . . . . . . Melee . | . . . . . . . . . . . . . . . . . . Ram 5 | . . . . . . . . . . 5 . . . . . . . Kick . | . . . . . . . . . . . . . . . . . . Crush . | . . . . . . . . . . . . . . . . . . Escape Stasis 15 | . . . . . . . 3 . . . . 12 . . . . . Rewire 69 | . . . . . 1 . 66 . . . . 2 . . . . . Trap . | . . . . . . . . . . . . . . . . . . Miscellaneous . | . . . . . . . . . . . . . . . . . . Route ------- -11/Scrapyard -10/Materials (discovered 2 exits: *Mat / *Min) -9/Materials -9/Mines (discovered 2 exits: *Mat / *Zio) -7/Zion -6/Proximity Caves -6/Factory -6/Extension (discovered 3 exits: *Fac x2 / *Cet) -6/Cetus (discovered 2 exits: *Fac / *Arc) -6/Archives (discovered 3 exits: *Fac / *Hub x2) -6/Hub_04(d) (discovered 3 exits: *Fac x3) -5/Factory -5/DSF -4/Factory -3/Research -3/Testing -2/Research (discovered 2 exits: *Acc x2) -1/Access History --------- Turn | Location | Event 27 | -11/Scrapyard | Discovered new exit (range 16) 73 | -11/Scrapyard | Entered Materials 181 | -10/Materials | Identified exit to Mines 316 | -10/Materials | Build established: Mutant 473 | -10/Materials | Discovered new exit (range 10) 521 | -10/Materials | Entered another Materials area 521 | -9/Materials | Evolved 2 slots: Propulsion x1, Utility x1 1248 | -9/Materials | Discovered new exit (range 16) 1251 | -9/Materials | Identified exit to Mines 1363 | -9/Materials | Entered Mines 1512 | -9/Mines | Received a Rocket Launcher from a helpful Derelict 1519 | -9/Mines | Discovered new exit (range 15) 1540 | -9/Mines | Identified exit to Materials 1590 | -9/Mines | Assembled infested the area 1590 | -9/Mines | A Derelict revealed a hidden shortcut to a safe place 1595 | -9/Mines | Assisted by a Guerilla fighting off Assembled 1607 | -9/Mines | Identified exit to Zion 1608 | -9/Mines | Entered Zion 1727 | -7/Zion | Given A8's code to call for help 1793 | -7/Zion | Discovered new exit (range 16) 1815 | -7/Zion | Identified exit to Proximity Caves 2458 | -7/Zion | Found Prototype Launcher 2458 | -7/Zion | Identified Rocket Array 2470 | -7/Zion | Found Prototype Launcher 2470 | -7/Zion | Identified Gui. Missile Launcher 2675 | -7/Zion | Found Prototype Special Weapon 2675 | -7/Zion | Identified RU-N14's Throwing Claymores 2763 | -7/Zion | Met Imprinter 2793 | -7/Zion | Imprinted 2795 | -7/Zion | Declared Zion's savior 3734 | -7/Zion | Entered Proximity Caves 3734 | -6/Proximity Caves | Accompanied by 4 allies 4093 | -6/Proximity Caves | Learned Factory trap positions 4137 | -6/Proximity Caves | Learned Factory security intel 4186 | -6/Proximity Caves | Discovered new exit (range 13) 4209 | -6/Proximity Caves | Identified exit to Factory 4333 | -6/Proximity Caves | Destroyed 7 combat bots 4853 | -6/Proximity Caves | Spotted B-75 Beast 4876 | -6/Proximity Caves | Allies destroyed B-75 Beast 4906 | -6/Proximity Caves | Lost 4 parts (1n3w) 5932 | -6/Proximity Caves | Entered Factory 5932 | -6/Factory | Evolved 6 slots: Propulsion x2, Utility x2, Weapon x2 5933 | -6/Factory | Identified exit to Extension 5934 | -6/Factory | Loaded intel: 106 trap records 6171 | -6/Factory | Zion Light squad teleported in 6730 | -6/Factory | Build established: Scavenger-Skirmisher 6751 | -6/Factory | Entered Extension 6751 | -6/Extension | Accompanied by 3 allies 6822 | -6/Extension | Zion Hacker squad teleported in 6823 | -6/Extension | Rescued A7 6918 | -6/Extension | Found Prototype Protection 6918 | -6/Extension | Identified Zio. Weapon Casing 7017 | -6/Extension | Rescued a captive Derelict 7208 | -6/Extension | Build established: Messiah-Skirmisher 7246 | -6/Extension | Retrieved Zion intel report: Branch Access 7246 | -6/Extension | Identified exit to Cetus 7247 | -6/Extension | Zion Recon squad teleported in 7353 | -6/Extension | Lost 3 allies 7405 | -6/Extension | Rescued a captive Derelict 7412 | -6/Extension | Spotted B-75 Beast 7438 | -6/Extension | Spotted B-75 Beast 7463 | -6/Extension | Crushed by falling debris 7464 | -6/Extension | System corruption reached 10% 7468 | -6/Extension | Allies destroyed B-75 Beast 7472 | -6/Extension | Destroyed B-75 Beast 7503 | -6/Extension | Lost 3 parts (1n1u1w) 7503 | -6/Extension | Lost 7 allies 7535 | -6/Extension | Enhanced Grunt warped into view, answering call for help 7538 | -6/Extension | Enhanced Grunt warped into view, answering call for help 7554 | -6/Extension | Extracted ID and sensor layout for unrecognized location from A7's data core 7721 | -6/Extension | Disrupted transfer network 7757 | -6/Extension | Build established: Scavenger-Gunner 7838 | -6/Extension | Discovered new exit (range 3) 7842 | -6/Extension | Identified exit to Factory 7969 | -6/Extension | P-60 Hacker assimilated allied 3O-U3E(h) 7997 | -6/Extension | Lost 3 parts (1n2w) 8069 | -6/Extension | Rescued a captive Derelict 8094 | -6/Extension | Terminal network hard line cut 8133 | -6/Extension | Energy Cycler disabled 8134 | -6/Extension | Rescued a captive Derelict 8134 | -6/Extension | Rescued a captive Derelict 8135 | -6/Extension | Rescued a captive Derelict 8136 | -6/Extension | Rescued a captive Derelict 8137 | -6/Extension | Rescued a captive Derelict 8138 | -6/Extension | Rescued a captive Derelict 8145 | -6/Extension | Rescued a captive Derelict 8266 | -6/Extension | Discovered exit to Factory (range 10) 8515 | -6/Extension | Entered Cetus 8515 | -6/Cetus | Accompanied by 11 allies 8532 | -6/Cetus | Spotted Cetus Guard 8532 | -6/Cetus | Spotted Cetus Guard 8534 | -6/Cetus | Spotted Cetus Guard 8535 | -6/Cetus | Spotted Cetus Guard 8541 | -6/Cetus | Destroyed Cetus Guard 8556 | -6/Cetus | Allies destroyed Cetus Guard 8559 | -6/Cetus | Allies destroyed Cetus Guard 8563 | -6/Cetus | Allies destroyed Cetus Guard 8588 | -6/Cetus | Lost 3 allies 8652 | -6/Cetus | Discovered exit to Factory (range 16) 8853 | -6/Cetus | Discovered new exit (range 15) 8870 | -6/Cetus | Identified exit to Archives 8897 | -6/Cetus | Spotted Cetus Guard 8897 | -6/Cetus | Spotted Cetus Guard 8906 | -6/Cetus | Spotted Cetus Guard 8906 | -6/Cetus | Spotted Cetus Guard 8932 | -6/Cetus | Entered Archives 8957 | -6/Archives | Lost 4 allies 9002 | -6/Archives | Unable to access archive contents 9031 | -6/Archives | Discovered new exit (range 16) 9038 | -6/Archives | Unable to access archive contents 9043 | -6/Archives | Discovered new exit (range 16) 9050 | -6/Archives | Unable to access archive contents 9077 | -6/Archives | Identified exit to Hub_04(d) 9115 | -6/Archives | Unable to access archive contents 9120 | -6/Archives | Discovered exit to Factory (range 14) 9228 | -6/Archives | Entered Hub_04(d) 9240 | -6/Hub_04(d) | Zion Melee Resupply teleported in 9266 | -6/Hub_04(d) | Build established: Scavenger-Tank 9341 | -6/Hub_04(d) | Released all parts (13) 9342 | -6/Hub_04(d) | Discovered exit to Factory (range 15) 9346 | -6/Hub_04(d) | Core integrity fell below 50% 9365 | -6/Hub_04(d) | Discovered exit to Factory (range 4) 9403 | -6/Hub_04(d) | Discovered exit to Factory (range 11) 9415 | -6/Hub_04(d) | Core integrity fell below 20% 9425 | -6/Hub_04(d) | Entered Factory 9425 | -5/Factory | Evolved 2 slots: Propulsion x1, Utility x1 9428 | -5/Factory | Identified exit to DSF 9440 | -5/Factory | Zion Hover Resupply teleported in 9476 | -5/Factory | Entered DSF 9476 | -5/DSF | Accompanied by 1 ally 9528 | -5/DSF | Additional patrols routed to DSF 9530 | -5/DSF | Core integrity fell below 50% 9536 | -5/DSF | Discovered new exit (range 16) 9557 | -5/DSF | Core integrity fell below 20% 9561 | -5/DSF | Entered Factory 9561 | -4/Factory | Evolved 2 slots: Propulsion x1, Utility x1 9623 | -4/Factory | Discovered new exit (range 15) 9630 | -4/Factory | Entered Research 9630 | -3/Research | Evolved 2 slots: Propulsion x1, Utility x1 9635 | -3/Research | Zion Experimental squad teleported in 9653 | -3/Research | Build established: Mutant 9711 | -3/Research | Discovered new exit (range 7) 9723 | -3/Research | Entered Testing 9723 | -3/Testing | Accompanied by 1 ally 9737 | -3/Testing | Retrieved Zion intel report: Emergency Access 9786 | -3/Testing | Discovered new exit (range 15) 9800 | -3/Testing | Entered Research 9800 | -2/Research | Evolved 2 slots: Propulsion x1, Weapon x1 9841 | -2/Research | Discovered new exit (range 43) 9862 | -2/Research | Zion Heavy squad teleported in 9927 | -2/Research | Zion Light squad teleported in 9969 | -2/Research | Discovered new exit (range 10) 9970 | -2/Research | Entered Access 9970 | -1/Access | Evolved 2 slots: Power x1, Propulsion x1 9992 | -1/Access | Lost 4 allies 10019 | -1/Access | Zion Hacker squad teleported in 10105 | -1/Access | Zion Experimental squad teleported in 10152 | -1/Access | Garrison activated, responded to threat 10211 | -1/Access | Zion Recon squad teleported in 10253 | -1/Access | Core integrity fell below 50% 10256 | -1/Access | Lost 5 allies 10273 | -1/Access | Core integrity fell below 20% 10286 | -1/Access | Destroyed by S-43 Plague with Heavy Machine Gun Last Messages --------------- >>\\ZION-ROSTER [ Establishing connection... ] [ Retrieving roster... ] [ Squads on standby: ] [ 1 : Offense Resupply ] [ 2 : Melee Resupply ] [ 3 : Zionite Resupply ] >>\\ZION-INTEL [ Establishing connection... ] [ Retrieving vulnerable data list... ] [ 1 : Active Garrisons ] [ 2 : Component Stockpiles ] [ 3 : Guard Positions ] [ 4 : Depthwide Sectors/-1 ] >>\\ZION-SEEK-3 [ Targeting Guard Positions... ] 10258_ T-07 Excavator destroyed. 10263_ ALERT: Potential suspicious activity detected, Programmers report to Access Zone 1Y. Map ----- +----------------------------------------------------+ | #??# "## # """"?? ?????? | | #??# ##! # ""????? ?????? | | ! #### ## # "?????????????? | | %= + ## # "?????????????? | | =! #### ##### ^ ######## ?????????????? | | = #??# #???## #### ?????????????? | | #??#+######+#??# ?????????????????? | | #??? ? ??# ?????????????????? | | #??? ?? ?? ?????????????????? | | ##+####? " ? ?#### ?????????????????? | | +? """ ????? ?????????????????? | | # """ #???? ??????????????????? | | # " #???? ????????????????? | | + #????? k ??????????????? | | # #????? ??????????????? | | # #????? ??????????????? | | #? ==! #????? ??????????????? | | ##### #? ==! #????# ???????????????? | | ????# #?? =!! #????# ????????????????? | | ??### #################?# ?????????????????? | | ?# # [ #?# ??????????????????? | | ## # ]#?# ???????????????????? | | + # """ """ #?# #????????????????????? | | ##! # """S""" #?# #????????????????????? | | ?# # ### #????????????????????? | | ??## ## s @ #????????????????????? | | ???# #######+#####+##s ####????????????????????? | | ???# sss #???????????????????????? | | ?### #???????????????????????? | | ?+ ##+#???????????????????????? | | ?# ########+######## #??????????????????????? | | ?# #????? ?????#! #??????????????????????? | | ?# #??? ??? #??????????????????????? | | ?######? ### #??????????????????????? | | ??????# #?# #??????????????????????? | | ??????# #?# #??????????????????????? | | ??????# #?? ???????????????????????? | | ??????###############??###???????????????????????? | | | | | | | | | | | | | | | | | | | | | | | | | +----------------------------------------------------+ Best States ------------- Heat Dissipation 63 Energy Generation 27 Energy Capacity 950 Matter Stores 300 Matter Capacity 300 Sight Range 16 Robot Scan Range 15 Terrain Scan Range 16 Terrain Scan Density 10 ECM Strength 1 Armor Coverage 225 Weapon Shielding 100 Evasion (%) 55 Targeting Accuracy 8 Recoil Reduction 2 Item Schematics ----------------- None Robot Schematics ------------------ None Fabricated ------------ Nothing Repaired ---------- Nothing Alien Tech Used ----------------- None Achievements -------------- Denied? Friend Of Zion Knowing Is Half The Battle Prison Break Challenges ------------ None Game ------ Seed GrenadeGodProtomatter Manual? 0 Play Time 01:26:56 Cumulative 41.9 hours Start 2025.07.11 @ 23:26:45 End 2025.07.12 @ 01:40:09 Sessions 3 Manual Loads 0 Difficulty Rogue Special Mode None Game No. 53 Rogue 53 Adventurer 0 Explorer 0 Win Type - Total 0 Types 0/0/0/0/0/0/0/0/0/0 Lore% 33 Gallery% 29 Achievement% 30 Wizard Run 0 Options --------- Layout 1 ASCII 0 Keyboard 0 Movement Arrows Keybinds 0 Fullscreen 1 Font 24/Smallcaps Map View 50x35 Zoom Use 0% Tactical HUD 1 Map Filters NONE Filters NONE Steam 1 RUN: 4cd717cf-a463-4f44-8114-d8f7f7ae6f63